bitfinex-derivatives/quotes_SOLF0:USTF0_20230103
["timestamp","ask_amount","ask_price","bid_price","bid_amount"]
[1672720668749,3.99,11.237,11.233,3.26868699]
[1672720678629,3.80915542,11.237,11.233,3.26868699]
[1672720680625,4.071321,11.238,11.234,4.01]
[1672720691868,0.061321,11.238,11.236,4.01]
[1672720692075,4.0,11.24,11.236,4.01]
[1672720694499,0.06862266,11.241,11.237,4.01]
[1672720694812,4.01,11.245,11.241,0.05117808]
[1672720695127,4.01,11.245,11.241,3.31785073]
[1672720698802,3.99,11.246,11.241,7.32785073]
[1672720699320,4.04158571,11.247,11.242,3.26667265]
[1672720699749,4.04158571,11.247,11.241,3.31785073]
[1672720707942,3.89327185,11.247,11.241,3.31785073]
[1672720719392,4.0,11.246,11.242,4.0]
[1672720719706,4.0605265,11.248,11.243,4.0]
[1672720727797,4.0,11.246,11.242,0.06624405]
[1672720737572,3.97,11.243,11.233,3.99]
[1672720737780,4.0,11.238,11.233,3.99]
[1672720738200,4.0,11.238,11.234,3.2684769]
[1672720740194,0.06774871,11.24,11.234,3.2684769]
[1672720740406,4.0,11.238,11.234,3.2684769]
[1672720746398,4.06774871,11.24,11.236,3.99]
[1672720750182,4.0,11.238,11.234,4.0]
[1672720754807,4.0,11.238,11.235,3.26859147]
[1672720762477,4.0,11.238,11.234,4.0]
[1672720764472,4.01,11.239,11.233,3.97]
[1672720765103,4.01,11.239,11.234,3.26861419]
[1672720779607,4.01,11.238,11.234,3.26861419]
[1672720780130,4.01,11.238,11.232,3.33235594]
[1672720780341,4.01,11.238,11.232,0.06374175]
[1672720780868,4.01,11.238,11.232,3.33244011]
[1672720784971,3.99,11.237,11.232,7.34244011]
[1672720785180,4.01,11.234,11.232,3.33244011]
[1672720785494,4.01,11.234,11.233,3.26869836]
[1672720786125,4.01,11.234,11.231,3.26869836]
[1672720787177,4.0,11.236,11.232,4.01]
[1672720788018,4.0,11.236,11.233,3.26869836]
[1672720793376,0.06291339,11.237,11.235,3.98]
[1672720793691,4.0730282,11.24,11.235,4.01]
[1672720794005,4.01,11.24,11.235,4.01]
[1672720794639,4.0,11.238,11.234,0.06378576]
[1672720795583,4.0,11.238,11.234,3.3322517]
[1672720795794,4.0,11.238,11.234,0.06378576]
[1672720796216,4.0,11.238,11.234,3.3322517]
[1672720801261,3.99,11.236,11.231,4.01]
[1672720801788,4.01,11.235,11.23,4.01]
[1672720801994,4.01,11.235,11.232,3.26857796]
[1672720802415,4.01,11.235,11.231,3.26857796]
[1672720803358,4.01,11.235,11.23,4.07739803]
[1672720814601,4.01,11.235,11.234,50.0]
[1672720814815,0.07097431,11.237,11.234,54.01]
[1672720815130,4.01,11.243,11.236,4.01]
[1672720815339,4.01,11.243,11.239,4.01]
[1672720824593,0.07032547,11.245,11.241,4.01]
[1672720824909,0.07032547,11.245,11.24,4.0]
[1672720829740,4.01,11.247,11.245,0.12977581]
[1672720831527,4.01,11.247,11.242,0.06005288]
[1672720835834,4.01,11.247,11.242,5.288e-05]
[1672720836048,4.01,11.243,11.234,4.0]
[1672720836359,4.01,11.239,11.232,4.01]
[1672720836992,4.07831592,11.239,11.232,4.07697739]
[1672720840983,0.06831592,11.239,11.238,4.01]
[1672720841303,0.06428293,11.242,11.238,4.01]
[1672720841510,0.0614414,11.244,11.241,4.01]
[1672720841724,2.0,11.247,11.241,4.01]
[1672720842039,0.06588075,11.246,11.241,4.01]
[1672720842249,0.06588075,11.246,11.24,4.0]
[1672720846874,0.06588075,11.246,11.242,4.01]
[1672720848345,4.01,11.248,11.246,0.09852113]
[1672720849711,4.01,11.248,11.243,0.06370394]
[1672720860641,4.07820856,11.251,11.244,4.01]
[1672720866528,49.5646,11.253,11.251,0.02866576]
[1672720866734,4.01,11.257,11.251,0.02866576]
[1672720867153,3.97,11.255,11.251,0.02866576]
[1672720867892,3.98,11.252,11.251,0.02866576]
[1672720869364,4.01,11.252,11.251,0.02866576]
[1672720871675,4.01,11.254,11.251,0.02866576]
[1672720872416,52.1917,11.256,11.251,0.02866576]
[1672720878405,3.98,11.254,11.251,0.02866576]
[1672720888497,3.98,11.253,11.251,0.02866576]
[1672720888709,3.98,11.252,11.251,0.02866576]
[1672720889864,3.98,11.252,11.247,0.06610317]
[1672720890068,3.98,11.252,11.246,0.06465827]
[1672720899218,4.01,11.249,11.246,0.06465827]
[1672720899428,4.01,11.249,11.244,0.06332329]
[1672720899637,4.01,11.249,11.243,0.0663532]
[1672720909623,4.01,11.25,11.243,4.0763532]
[1672720916552,0.06420162,11.251,11.247,4.01]
[1672720917396,0.06420162,11.251,11.245,4.0]
[1672720933799,0.06420162,11.251,11.247,4.0]
[1672720959655,0.06420162,11.251,11.246,4.01]
[1672720964384,4.05420162,11.251,11.247,4.0]
[1672720969638,0.06420162,11.251,11.248,3.99]
[1672720969850,3.99,11.252,11.248,3.99]
[1672720979405,0.06583804,11.253,11.246,4.05247372]
[1672720979619,4.0,11.25,11.246,4.05247372]
[1672720999593,4.0,11.25,11.246,0.06247372]
[1672721009160,3.97,11.252,11.248,4.0]
[1672721036997,4.06583804,11.253,11.249,4.0]
[1672721037207,0.06583804,11.253,11.25,4.0]
[1672721037520,4.07049476,11.255,11.25,4.0]
[1672721049919,3.88146402,11.255,11.25,4.0]
[1672721050125,3.88146402,11.255,11.249,0.06792934]
[1672721050126,0.07049476,11.255,11.252,4.0]
[1672721050335,4.03440801,11.257,11.252,4.0]
[1672721050550,0.06440801,11.257,11.254,4.0]
[1672721050761,3.99,11.258,11.254,4.0]
[1672721052862,0.06078168,11.259,11.255,4.0]
[1672721053807,3.97,11.258,11.254,4.0]
[1672721069564,0.06078168,11.259,11.254,4.0]
[1672721069778,4.03078168,11.259,11.254,4.0]
[1672721073771,4.0,11.256,11.252,0.06295362]
[1672721077554,3.99,11.255,11.252,0.06295362]
[1672721077761,3.99,11.255,11.25,4.06965641]
[1672721077968,3.99,11.252,11.25,0.06965641]
[1672721078283,3.99,11.251,11.247,0.06380869]
[1672721078497,3.99,11.25,11.247,0.06380869]
[1672721078707,3.99,11.25,11.245,4.06170451]
[1672721085540,4.0,11.251,11.245,0.06170451]
[1672721101094,4.0,11.249,11.245,0.06170451]
[1672721102881,3.97,11.247,11.245,0.06170451]
[1672721103091,3.97,11.247,11.242,0.06014457]
[1672721107290,3.98,11.243,11.242,0.06014457]
[1672721107501,3.98,11.243,11.239,0.0693801]
[1672721107710,3.98,11.243,11.237,0.06204531]
[1672721108338,3.98,11.243,11.237,50.06204531]
[1672721111495,53.9069,11.245,11.238,4.0]
[1672721113912,4.0,11.245,11.238,4.0]
[1672721139658,3.97,11.244,11.237,54.06204531]
[1672721140710,4.0,11.242,11.237,50.06204531]
[1672721141444,4.0,11.242,11.237,0.06204531]
[1672721141968,4.0,11.242,11.237,50.06204531]
[1672721144806,4.0,11.242,11.237,0.06204531]
[1672721145228,4.0,11.242,11.237,50.06204531]
[1672721149538,0.06368137,11.243,11.237,54.06204531]
[1672721150267,3.97,11.241,11.237,50.06204531]
[1672721152480,3.97,11.241,11.237,0.06204531]
[1672721153842,3.97,11.241,11.237,50.06204531]
[1672721154473,3.97,11.241,11.237,0.06204531]
[1672721155104,4.0,11.238,11.237,0.06204531]
[1672721155310,4.0,11.238,11.231,4.0]
[1672721155626,4.06969984,11.238,11.231,4.06696245]
[1672721157102,0.06969984,11.238,11.235,4.0]
[1672721157314,0.0627254,11.24,11.236,4.0]
[1672721157526,50.47062575,11.242,11.236,4.0]
[1672721158472,0.06002575,11.242,11.236,4.0]
[1672721162679,0.06002575,11.242,11.238,4.0]
[1672721170357,3.99,11.244,11.242,0.08066499]
[1672721179602,4.0,11.245,11.242,0.08066499]
[1672721190424,3.88471703,11.245,11.242,0.08066499]
[1672721199669,4.0,11.246,11.242,0.08066499]
[1672721205451,54.0,11.246,11.242,0.08066499]
[1672721208500,53.85210533,11.246,11.242,0.08066499]
[1672721211339,3.85210533,11.246,11.242,0.08066499]
[1672721212185,53.85210533,11.246,11.242,0.08066499]
[1672721217952,53.85210533,11.246,11.24,4.0]
[1672721219314,53.85210533,11.246,11.239,0.06667069]
[1672721219526,3.98,11.244,11.24,4.01]
[1672721222362,3.98,11.244,11.24,3.90252347]
[1672721226147,4.01,11.245,11.241,3.98]
[1672721228147,50.0,11.246,11.242,4.01]
[1672721228670,50.0,11.246,11.243,4.01]
[1672721232348,0.06051141,11.247,11.243,4.01]
[1672721234030,50.0,11.246,11.243,4.01]
[1672721237393,49.8999886,11.246,11.243,4.01]
[1672721239601,49.8999886,11.246,11.244,4.01]
[1672721249583,49.8999886,11.246,11.245,4.01]
[1672721256415,49.8999886,11.246,11.244,4.01]
[1672721262715,0.06424634,11.249,11.246,0.22092082]
[1672721262925,0.06435278,11.251,11.248,4.01]
[1672721263137,0.06132494,11.253,11.249,3.98]
[1672721263345,3.98,11.254,11.249,3.98]
[1672721267867,3.8476744,11.254,11.249,3.98]
[1672721281000,0.0692668,11.255,11.251,4.01]
[1672721281001,4.0492668,11.255,11.251,4.01]
[1672721281523,0.0692668,11.255,11.252,4.01]
[1672721281733,49.8999886,11.256,11.252,4.01]
[1672721282575,49.8999886,11.256,11.254,3.99]
[1672721286040,0.06358358,11.257,11.254,3.99]
[1672721286251,49.8999886,11.256,11.254,3.99]
[1672721288249,49.68261359,11.256,11.254,3.99]
[1672721290351,49.68261359,11.256,11.253,4.0]
[1672721292876,49.68261359,11.256,11.255,4.0]
[1672721295082,49.68261359,11.256,11.254,3.97]
[1672721305172,49.68261359,11.256,11.252,0.06310924]
[1672721306540,53.66261359,11.256,11.252,0.06310924]
[1672721319357,4.0,11.255,11.252,0.06310924]
[1672721319566,4.0,11.255,11.25,0.06370059]
[1672721319880,4.0,11.255,11.249,0.06393936]
[1672721330496,3.98,11.253,11.249,4.06393936]
[1672721334072,3.85207051,11.253,11.249,4.06393936]
[1672721341845,3.98,11.252,11.249,0.06393936]
[1672721342048,3.98,11.252,11.247,3.99]
[1672721348682,3.86410634,11.252,11.247,3.99]
[1672721359603,3.97,11.252,11.248,4.0]
[1672721360865,3.81234661,11.252,11.248,4.0]
[1672721362752,4.0,11.251,11.246,4.05473207]
[1672721365695,3.98,11.247,11.242,3.99]
[1672721366213,3.98,11.247,11.242,3.88946666]
[1672721366429,49.68261359,11.246,11.242,3.88946666]
[1672721375152,4.0,11.244,11.24,4.0648582]
[1672721379463,3.88951963,11.244,11.24,4.0648582]
[1672721389661,4.0,11.244,11.24,0.0648582]
[1672721393235,3.90637483,11.244,11.24,0.0648582]
[1672721395543,53.66261359,11.246,11.241,4.0]
[1672721403426,3.98,11.246,11.241,4.0]
[1672721404383,4.0,11.247,11.24,4.0548582]
[1672721407105,3.79760074,11.247,11.24,4.0548582]
[1672721414144,49.68261359,11.245,11.24,4.0548582]
[1672721419189,49.6047752,11.245,11.24,4.0548582]
[1672721424235,49.6047752,11.245,11.242,4.0]
[1672721431280,49.40761911,11.245,11.242,4.0]
[1672721434641,49.40761911,11.245,11.242,3.77062013]
[1672721438633,4.0,11.246,11.242,3.77062013]
[1672721439577,4.0,11.247,11.242,3.77062013]
[1672721448197,49.40761911,11.245,11.242,3.77062013]
[1672721448619,4.0,11.247,11.242,3.77062013]
[1672721448828,49.2124601,11.245,11.242,3.77062013]
[1672721453449,4.0,11.247,11.24,0.0648582]
[1672721453662,0.06676757,11.248,11.246,4.0]
[1672721453872,0.07027985,11.251,11.247,3.96]
[1672721454083,0.06339274,11.253,11.249,3.99]
[1672721454294,3.98,11.254,11.249,3.99]
[1672721462492,3.89903032,11.254,11.249,3.99]
[1672721469637,4.0,11.254,11.25,4.0]
[1672721473209,49.27818638,11.255,11.253,3.96]
[1672721473418,49.2124601,11.255,11.253,3.96]
[1672721475836,49.02085755,11.255,11.253,3.96]
[1672721477312,49.02085755,11.255,11.254,3.96]
[1672721486768,49.02085755,11.255,11.253,4.0]
[1672721487394,0.06353789,11.258,11.254,4.97914245]
[1672721487608,4.0,11.264,11.257,4.0]
[1672721487923,4.0,11.264,11.26,4.0]
[1672721492015,4.0,11.264,11.258,0.06267744]
[1672721492231,49.02085755,11.265,11.261,3.99]
[1672721500004,48.80443831,11.265,11.261,3.99]
[1672721500636,48.80443831,11.265,11.26,3.97]
[1672721509254,48.80443831,11.265,11.258,0.06267744]
[1672721509255,48.80443831,11.265,11.262,3.99]
[1672721510512,48.80443831,11.265,11.261,3.99]
[1672721522807,0.06331228,11.266,11.261,3.99]
[1672721523861,48.80443831,11.265,11.261,3.99]
[1672721526162,48.80443831,11.265,11.254,3.99]
[1672721526484,3.99,11.262,11.254,5.16556169]
[1672721526696,3.99,11.262,11.254,3.97]
[1672721527219,4.05732093,11.262,11.254,4.03762555]
[1672721528476,3.98,11.259,11.254,0.06762555]
[1672721529107,4.0,11.258,11.254,4.06762555]
[1672721529320,48.80443831,11.255,11.254,4.06762555]
[1672721529637,48.80443831,11.255,11.254,4.0]
[1672721531424,48.80443831,11.255,11.252,3.98]
[1672721540774,4.0,11.254,11.251,0.06364649]
[1672721540986,4.0,11.254,11.25,4.0]
[1672721542985,4.0,11.254,11.25,3.79674025]
[1672721554239,48.72439636,11.255,11.25,3.79674025]
[1672721555920,48.63553494,11.255,11.25,3.79674025]
[1672721557182,48.63553494,11.255,11.249,4.04815712]
[1672721560018,3.98,11.253,11.249,0.06815712]
[1672721560647,4.0,11.251,11.249,0.06815712]
[1672721560963,4.0,11.251,11.246,0.06804895]
[1672721564221,3.96,11.25,11.246,0.06804895]
[1672721568319,4.0,11.251,11.246,0.06804895]
[1672721576090,3.98,11.248,11.246,0.06804895]
[1672721576299,3.98,11.248,11.245,1.36446506]
[1672721581871,4.0,11.25,11.245,1.36446506]
[1672721582816,4.0,11.25,11.244,4.0]
[1672721583341,4.0,11.25,11.245,1.36446506]
[1672721588072,4.0,11.25,11.244,4.0]
[1672721588389,4.0,11.25,11.245,1.36446506]
[1672721597530,4.0,11.25,11.244,4.0]
[1672721597743,4.0,11.25,11.245,1.36446506]
[1672721599636,0.07029407,11.252,11.245,1.36446506]
[1672721599637,3.98,11.251,11.245,5.36446506]
[1672721600056,3.98,11.251,11.245,4.0]
[1672721600685,3.98,11.251,11.245,5.36446506]
[1672721604678,3.98,11.251,11.245,4.0]
[1672721604888,3.98,11.251,11.245,5.36446506]
[1672721612142,3.98,11.251,11.245,4.0]
[1672721612457,3.98,11.251,11.245,5.36446506]
[1672721614242,3.98,11.251,11.246,4.0]
[1672721619709,3.98,11.251,11.247,4.0]
[1672721647563,4.0,11.249,11.245,4.0]
[1672721647773,2.0,11.248,11.243,0.06418398]
[1672721648091,2.0,11.248,11.245,4.0]
[1672721648298,4.07142031,11.249,11.245,4.0]
[1672721648926,4.0,11.246,11.243,0.06418398]
[1672721649141,4.0,11.244,11.241,0.06324687]
[1672721649352,4.0,11.244,11.239,4.06797693]
[1672721649771,54.0,11.244,11.239,4.06797693]
[1672721653769,4.0,11.244,11.239,4.06797693]
[1672721653975,4.07027406,11.246,11.241,3.99]
[1672721654296,50.0,11.244,11.243,4.0]
[1672721659549,0.06635794,11.247,11.242,3.99]
[1672721659863,50.0,11.244,11.242,3.99]
[1672721662911,49.92766439,11.244,11.242,3.99]
[1672721664068,49.92766439,11.244,11.239,4.02797693]
[1672721666166,53.89766439,11.244,11.239,0.06797693]
[1672721666587,3.97,11.243,11.239,0.06797693]
[1672721667219,53.92766439,11.244,11.239,0.06797693]
[1672721679305,4.0,11.243,11.239,0.06797693]
[1672721679621,3.98,11.243,11.239,4.06797693]
[1672721683407,3.99,11.242,11.237,4.01]
[1672721697274,3.80832112,11.242,11.237,4.01]
[1672721700953,4.0,11.24,11.236,579.0736222]
[1672721701164,4.0,11.24,11.236,4.0736222]
[1672721704106,4.0,11.242,11.237,4.0]
[1672721707788,3.98,11.24,11.236,4.0736222]
[1672721711254,4.0,11.239,11.236,0.0636222]
[1672721711464,3.98,11.237,11.234,0.07141061]
[1672721711779,3.99,11.235,11.232,0.06440055]
[1672721712093,49.92766439,11.234,11.231,4.0]
[1672721713773,53.90766439,11.234,11.23,4.07017327]
[1672721717766,3.98,11.232,11.23,0.06017327]
[1672721718081,3.98,11.232,11.228,3.99]
[1672721724068,4.01,11.229,11.227,0.06353441]
[1672721724278,4.0,11.228,11.223,4.0]
[1672721724488,4.0,11.228,11.222,4.02]
[1672721729644,0.06878064,11.229,11.223,4.0]
[1672721732261,0.06878064,11.229,11.225,4.02]
[1672721733214,0.06878064,11.229,11.226,4.0]
[1672721733424,0.06879243,11.231,11.226,4.0]
[1672721733739,0.06557101,11.232,11.226,4.0]
[1672721735103,3.98,11.231,11.225,4.0]
[1672721737205,3.76577972,11.231,11.225,4.0]
[1672721740890,4.0,11.226,11.224,0.06713548]
[1672721741093,4.0,11.226,11.221,0.06506806]
[1672721741303,4.0,11.226,11.22,0.06692571]
[1672721741516,49.92766439,11.224,11.22,0.06692571]
[1672721743829,4.0,11.226,11.22,0.06692571]
[1672721744246,49.92766439,11.224,11.22,0.06692571]
[1672721756333,4.02,11.223,11.22,0.06692571]
[1672721756549,4.0,11.221,11.214,4.02]
[1672721757487,4.06540883,11.221,11.214,4.08941115]
[1672721763379,4.06540883,11.221,11.177,1798.0]
[1672721763380,4.02,11.217,11.21,4.02]
[1672721763590,4.02,11.213,11.207,4.02]
[1672721763800,4.02,11.213,11.202,2.0]
[1672721763801,53.94766439,11.213,11.206,4.0]
[1672721764533,54.01418019,11.213,11.206,4.06074572]
[1672721764845,49.99418019,11.213,11.208,4.02]
[1672721765269,0.0665158,11.213,11.208,4.02]
[1672721769578,0.0665158,11.213,11.21,4.02]
[1672721769788,0.06110856,11.215,11.21,4.02]
[1672721769998,0.06110856,11.215,11.211,4.02]
[1672721770204,0.06415988,11.217,11.213,4.02]
[1672721770523,0.06500103,11.219,11.216,4.02]
[1672721770733,0.06642932,11.221,11.216,4.02]
[1672721771151,0.06642932,11.221,11.217,4.02]
[1672721772413,4.02,11.22,11.214,4.08831549]
[1672721772626,4.02,11.219,11.214,0.06831549]
[1672721773043,49.92766439,11.215,11.214,0.06831549]
[1672721773252,49.92766439,11.215,11.213,4.02]
[1672721773570,49.92766439,11.215,11.211,4.0807652]
[1672721773991,49.92766439,11.215,11.211,0.0607652]
[1672721774412,4.02,11.216,11.211,0.0607652]
[1672721777457,49.92766439,11.213,11.211,0.0607652]
[1672721777667,49.92766439,11.213,11.21,4.02]
[1672721778194,49.82171151,11.213,11.21,4.02]
[1672721780297,0.07091811,11.215,11.21,4.02]
[1672721781871,0.07091811,11.215,11.214,4.02]
[1672721782079,0.06710182,11.218,11.214,4.19828849]
[1672721782298,0.0671268,11.22,11.216,4.02]
[1672721782505,4.08827366,11.222,11.216,4.02]
[1672721782928,0.06827366,11.222,11.217,4.02]
[1672721783137,0.06827366,11.222,11.221,4.02]
[1672721783451,49.82171151,11.223,11.221,4.02]
[1672721785450,49.82171151,11.223,11.222,4.02]
[1672721790806,49.82171151,11.223,11.221,7.98]
[1672721792490,49.65405387,11.223,11.221,7.98]
[1672721795014,0.06714919,11.225,11.221,7.98]
[1672721795536,49.65405387,11.223,11.221,7.98]
[1672721797955,49.65405387,11.223,11.22,8.03]
[1672721801318,49.65405387,11.223,11.22,7.92158824]
[1672721809838,49.65405387,11.223,11.22,4.02]
[1672721816026,49.47779354,11.223,11.22,4.02]
[1672721826754,49.47779354,11.223,11.218,4.08387866]
[1672721829911,49.30765063,11.223,11.218,4.08387866]
[1672721831483,53.31765063,11.223,11.218,0.06387866]
[1672721835791,4.01,11.223,11.218,0.06387866]
[1672721839473,4.02,11.224,11.218,4.08387866]
[1672721841043,49.30765063,11.223,11.218,4.08387866]
[1672721842825,49.08842276,11.223,11.218,4.08387866]
[1672721852810,49.08842276,11.223,11.221,4.02]
[1672721855858,48.9502516,11.223,11.221,4.02]
[1672721860273,48.9502516,11.223,11.219,4.02]
[1672721862059,4.02,11.222,11.218,0.06387866]
[1672721862374,4.01,11.221,11.218,0.06387866]
[1672721862582,4.01,11.221,11.216,0.06924189]
[1672721869309,4.08266041,11.222,11.216,4.05924189]
[1672721872669,0.06266041,11.222,11.218,4.02]
[1672721878870,0.06266041,11.222,11.218,3.78522429]
[1672721883281,4.07266041,11.222,11.216,4.08924189]
[1672721883497,4.02,11.219,11.216,0.06924189]
[1672721883701,4.02,11.219,11.214,0.06033019]
[1672721883915,4.01,11.217,11.213,0.06635363]
[1672721884124,4.01,11.217,11.211,4.08571377]
[1672721884443,48.9502516,11.213,11.211,4.08571377]
[1672721884756,48.9502516,11.213,11.211,4.02]
[1672721886861,48.9502516,11.213,11.209,3.99]
[1672721890852,48.9502516,11.213,11.211,4.02]
[1672721891695,48.9502516,11.213,11.21,4.02]
[1672721897477,48.9502516,11.213,11.208,4.05155107]
[1672721908823,48.9502516,11.213,11.21,3.99]
[1672721909978,48.9502516,11.213,11.208,4.08155107]
[1672721912608,48.9502516,11.213,11.21,3.99]
[1672721913445,48.9502516,11.213,11.212,4.02]
[1672721916177,0.07101161,11.216,11.212,4.02]
[1672721916388,4.02,11.222,11.215,4.02]
[1672721916810,4.02,11.224,11.218,4.02]
[1672721922696,4.01,11.222,11.217,0.06613048]
[1672721929106,3.86555642,11.222,11.217,0.06613048]
[1672721935938,4.02,11.22,11.217,0.06613048]
[1672721936143,4.02,11.219,11.215,0.06877851]
[1672721936453,4.02,11.219,11.213,0.06405276]
[1672721938249,4.01,11.217,11.213,0.06405276]
[1672721940560,50.0,11.223,11.197,118.0511]
[1672721940561,825.71116432,11.272,11.216,110.23]
[1672721940771,51.5494,11.293,11.271,50.0]
[1672721940980,494.04773572,11.31,11.217,1798.0]
[1672721941190,494.04773572,11.321,11.261,50.0]
[1672721941398,0.06718022,11.295,11.287,0.06244375]
[1672721941611,16.08,11.286,11.27,3.99]
[1672721941815,4.02,11.282,11.274,4.02]
[1672721942032,3.0,11.295,11.275,3.0]
[1672721942233,494.04773572,11.324,11.275,3.0]
[1672721942234,494.04773572,11.33,11.29,50.0]
[1672721942445,494.04773572,11.356,11.329,4.02]
[1672721942661,485.75613682,11.344,11.335,16.08]
[1672721942866,4.01,11.376,11.343,8.03]
[1672721943080,0.06275632,11.363,11.349,50.0]
[1672721943394,0.0006144,11.36,11.352,0.06511633]
[1672721943605,3.0,11.359,11.345,3.93]
[1672721943818,4.02,11.36,11.352,3.99]
[1672721944021,50.0,11.36,11.345,16.05]
[1672721944231,3.0,11.358,11.325,4.02]
[1672721944440,4.02,11.339,11.338,0.06655764]
[1672721944652,16.08,11.336,11.322,4.02]
[1672721944865,54.02,11.33,11.322,4.02]
[1672721945075,4.01,11.328,11.32,4.02]
[1672721945285,4.02,11.321,11.295,16.08]
[1672721945496,50.0,11.32,11.295,16.08]
[1672721945707,0.06984815,11.311,11.296,3.0]
[1672721945916,4.01,11.301,11.294,3.48127306]
[1672721946128,3.54060633,11.31,11.288,46.45939367]
[1672721946333,4.01,11.308,11.3,4.02]
[1672721946543,4.02,11.309,11.302,4.02]
[1672721946752,0.0670859,11.309,11.308,3.99]
[1672721946962,3.54060633,11.31,11.308,3.99]
[1672721947172,0.06554585,11.312,11.309,3.99]
[1672721947497,0.06999917,11.314,11.311,4.02]
[1672721947704,0.0702908,11.316,11.31,4.02]
[1672721947914,0.06105141,11.317,11.31,4.02]
[1672721948126,3.06105141,11.317,11.31,4.02]
[1672721948336,7.56060633,11.311,11.303,4.02]
[1672721948545,7.56060633,11.311,11.296,3.0]
[1672721948546,4.01,11.307,11.3,4.02]
[1672721948756,3.54060633,11.301,11.299,4.02]
[1672721948969,3.54060633,11.301,11.298,4.02]
[1672721949174,4.02,11.302,11.295,4.02]
[1672721949490,4.02,11.302,11.295,0.0697175]
[1672721949491,4.02,11.301,11.295,0.0697175]
[1672721949910,3.54060633,11.299,11.295,0.0697175]
[1672721950331,4.02,11.296,11.276,16.06]
[1672721950543,4.01,11.295,11.288,3.99]
[1672721950755,3.54060633,11.299,11.294,4.02]
[1672721950963,3.54060633,11.299,11.296,4.02]
[1672721951377,3.54060633,11.299,11.294,0.07034774]
[1672721951594,3.54060633,11.299,11.298,4.02]
[1672721951802,3.35018859,11.299,11.298,4.02]
[1672721952010,0.06870131,11.302,11.298,4.02]
[1672721952226,0.06870131,11.302,11.301,4.02]
[1672721952540,0.06673938,11.305,11.301,4.02]
[1672721952744,0.06673938,11.305,11.296,3.0]
[1672721952745,0.07106047,11.307,11.304,4.02]
[1672721952960,0.07028479,11.309,11.304,4.02]
[1672721954531,4.01,11.308,11.302,0.07001293]
[1672721954743,0.07028479,11.309,11.303,4.02]
[1672721955159,0.07028479,11.309,11.304,4.02]
[1672721955902,0.07028479,11.309,11.302,4.09001293]
[1672721956113,54.01,11.303,11.29,4.02]
[1672721956325,4.01,11.294,11.287,4.02]
[1672721956846,4.02,11.295,11.289,4.02]
[1672721957479,54.02,11.29,11.278,4.02]
[1672721957688,4.02,11.285,11.268,50.0]
[1672721957898,4.02,11.285,11.278,4.02]
[1672721958316,3.0,11.294,11.278,4.02]
[1672721958317,3.0,11.294,11.278,50.0]
[1672721958635,0.07116806,11.29,11.289,4.02]
[1672721958846,0.06842207,11.293,11.289,4.02]
[1672721959056,0.06081187,11.295,11.289,4.02]
[1672721961568,3.0,11.289,11.283,4.02]
[1672721961779,4.02,11.288,11.281,4.02]
[1672721961993,4.02,11.287,11.28,4.02]
[1672721962416,3.0,11.289,11.275,3.0]
[1672721962622,0.06175061,11.286,11.278,0.06647731]
[1672721964209,0.06175061,11.286,11.282,3.0]
[1672721964730,50.0,11.3,11.284,11.93]
[1672721964944,50.0,11.3,11.287,11.87]
[1672721965149,50.0,11.3,11.288,3.0]
[1672721965679,0.06417687,11.298,11.29,0.06176255]
[1672721968405,50.0,11.291,11.278,3.0]